fUSD/lending_fUSD_20240704
["ID","MTS","AMOUNT","RATE_DAILY","PERIOD"]
[331159445,1720110667716,-281.94664387,0.00022499,4]
[331159446,1720110667728,-500.0,0.00022499,4]
[331159447,1720110667738,-352.42,0.00022499,4]
[331159448,1720110667749,-449.62,0.00022499,4]
[331159449,1720110667758,-500.0,0.00022499,4]
[331159450,1720110667767,-500.0,0.00022499,4]
[331159451,1720110667777,-500.0,0.00022499,4]
[331159452,1720110667786,-539.75,0.00022499,4]
[331159453,1720110667796,-500.0,0.00022499,4]
[331159454,1720110667806,-500.0,0.00022499,4]
[331159455,1720110667815,-500.0,0.00022499,4]
[331159456,1720110667825,-500.0,0.00022499,4]
[331159457,1720110667834,-500.0,0.00022499,4]
[331159458,1720110667843,-500.0,0.00022499,4]
[331159459,1720110667853,-500.0,0.00022499,4]
[331159460,1720110667862,-442.78512329,0.00022499,4]
[331159461,1720110667871,-500.0,0.00022499,4]
[331159462,1720110667881,-1855.2,0.00022499,4]
[331159463,1720110667890,-1855.2,0.00022499,4]
[331159464,1720110667899,-1855.2,0.00022499,4]
[331159465,1720110667908,-1855.2,0.00022499,4]
[331159466,1720110667918,-500.0,0.00022499,4]
[331159467,1720110667927,-500.0,0.00022499,4]
[331159468,1720110667937,-629.72,0.00022499,4]
[331159469,1720110667946,-500.0,0.00022499,4]
[331159470,1720110667956,-1855.2,0.00022499,4]
[331159471,1720110667965,-500.0,0.00022499,4]
[331159472,1720110667977,-500.0,0.00022499,4]
[331159473,1720110667986,-1855.2,0.00022499,4]
[331159474,1720110667995,-638.54,0.00022499,4]
[331159475,1720110668004,-1855.2,0.00022499,4]
[331159476,1720110668013,-1855.2,0.00022499,4]
[331159477,1720110668022,-1855.2,0.00022499,4]
[331159478,1720110668031,-500.0,0.00022499,4]
[331159479,1720110668041,-500.0,0.00022499,4]
[331159480,1720110668051,-172.34,0.00022499,4]
[331159481,1720110668061,-1855.2,0.00022499,4]
[331159482,1720110668071,-1855.2,0.00022499,4]
[331159483,1720110668081,-1855.2,0.00022499,4]
[331159484,1720110668090,-1855.2,0.00022499,4]
[331159485,1720110668101,-1855.2,0.00022499,4]
[331159486,1720110668110,-1855.2,0.00022499,4]
[331159487,1720110668120,-470.64724348,0.00022499,4]
[331159488,1720110668415,-1384.55275652,0.00022499,4]
[331159489,1720110668425,-458.56526048,0.00022499,4]
[331159490,1720110668437,-402.48999276,0.00022499,4]
[331159491,1720110668510,-994.14474676,0.00022499,4]
[331159492,1720110668520,-1378.84,0.00022499,2]
[331159493,1720110668529,-119.57838569,0.00022499,4]
[331159494,1720110668540,-1735.62161431,0.00022499,4]
[331159495,1720110668550,-430.25568192,0.00022499,4]
[331159496,1720110668561,-1000.0,0.00022499,4]
[331159497,1720110668732,-377.33058206,0.00019993,2]
[331159498,1720110668744,-65.66941794,0.00019993,2]
[331159499,1720110668753,-274.01125339,0.0002,2]
[331159500,1720110668763,-164.06772925,0.0002,2]
[331159501,1720110668779,-109.94352414,0.0002,2]
[331159502,1720110668789,-274.01125339,0.0002,2]
[331159503,1720110668798,-218.05366362,0.0002,2]
[331159504,1720110668815,-55.95758977,0.0002,2]
[331159505,1720110668825,-217.7625262,0.0002,2]
[331159506,1720110668874,-56.24872719,0.0002,2]
[331159507,1720110668883,-274.01125339,0.0002,2]
[331159508,1720110668892,-274.01125339,0.0002,2]
[331159509,1720110668902,-274.01125339,0.0002,2]
[331159510,1720110668912,-274.01125339,0.0002,2]
[331159511,1720110668921,-274.01125339,0.0002,2]
[331159512,1720110668931,-274.01125339,0.0002,2]
[331159513,1720110668942,-274.01125339,0.0002,2]
[331159514,1720110668952,-118.82269908,0.0002,2]
[331159515,1720110668965,-155.18855431,0.0002,2]
[331159516,1720110668976,-274.01125339,0.0002,2]
[331159517,1720110668984,-184.3301923,0.0002,2]
[331159518,1720110668996,-89.68106109,0.0002,2]
[331159519,1720110669006,-274.01125339,0.0002,2]
[331159520,1720110669016,-153.65,0.00021912,2]
[331159521,1720110669026,-424.94431808,0.00022499,4]
[331159522,1720110669037,-1435.31437865,0.00022499,4]
[331159523,1720110669054,-419.88562135,0.00022499,4]
[331159524,1720110669063,-1855.2,0.00022499,4]
[331159525,1720110669073,-1855.2,0.00022499,4]
[331159526,1720110669083,-287.2395486,0.00022499,4]
[331159527,1720110669095,-212.7604514,0.00022499,4]
[331159528,1720110669105,-1316.71911214,0.00022499,4]
[331159529,1720110669117,-538.48088786,0.00022499,4]
[331159530,1720110669127,-120.18247342,0.00022499,4]
[331159531,1720110669138,-432.81752658,0.00022499,4]
[331159532,1720110669148,-984.74691217,0.00022499,4]
[331159533,1720110669159,-870.58538558,0.00022499,4]
[331159534,1720110669168,-500.0,0.00022499,4]
[331159535,1720110669177,-500.0,0.00022499,4]
[331159536,1720110669187,-500.0,0.00022499,4]
[331159537,1720110669196,-500.0,0.00022499,4]
[331159538,1720110669206,-500.0,0.00022499,4]
[331159539,1720110669215,-500.0,0.00022499,4]
[331159540,1720110669228,-376.51445619,0.00022499,4]
[331159541,1720110669237,-500.0,0.00022499,4]
[331159542,1720110669247,-500.0,0.00022499,4]
[331159543,1720110669257,-500.0,0.00022499,4]
[331159544,1720110669268,-556.38773909,0.00022499,4]
[331159545,1720110669278,-500.0,0.00022499,4]
[331159546,1720110669288,-500.0,0.00022499,4]
[331159547,1720110669298,-500.0,0.00022499,4]
[331159548,1720110669308,-500.0,0.00022499,4]
[331159549,1720110669318,-500.0,0.00022499,4]
[331159550,1720110669328,-367.27109103,0.00022499,4]
[331159551,1720110669337,-500.0,0.00022499,4]
[331159552,1720110669348,-500.0,0.00022499,4]
[331159553,1720110669357,-151.0,0.00022499,7]
[331159554,1720110669366,-291.46,0.00022499,4]
[331159555,1720110669376,-2266.94,0.00022499,4]
[331159556,1720110669385,-2266.94,0.00022499,4]
[331159557,1720110669395,-151.0,0.00022499,7]
[331159558,1720110669406,-2266.94,0.00022499,4]
[331159559,1720110669418,-2266.94,0.00022499,4]
[331159560,1720110669427,-1432.51239248,0.00022499,4]
[331159566,1720110869644,14332.11744384,6.94e-05,2]
[331159567,1720110943683,3655.3319417,0.000112,2]
[331159583,1720111159950,-2698.36433404,0.000117,2]
[331159584,1720111159979,-300.0,0.00011799,2]
[331159585,1720111160005,-12028.18889355,0.000118,2]
[331159591,1720111377642,2344.34960095,0.00011199,2]
[331159612,1720111766116,-410.07016707,0.00013574,2]
[331159613,1720111766139,-844.6469,0.000139,2]
[331159614,1720111766160,-163.71307365,0.000139,2]
[331159615,1720111766183,-179.61688851,0.0001399,2]
[331159616,1720111766204,-300.0,0.00013998,2]
[331159617,1720111766225,-1000.0,0.00013999,2]
[331159618,1720111766246,-1899.40973453,0.00013999,2]
[331159637,1720111831672,-555.90330277,0.00013472,2]
[331159638,1720111831684,-315.29707946,0.00013472,2]
[331159639,1720111831696,-3130.77000284,0.00013472,2]
[331159640,1720111831707,-872.67905712,0.00013472,2]
[331159641,1720111831718,-1112.73839352,0.00013472,2]
[331159642,1720111831732,-327.85685687,0.00013472,2]
[331159643,1720111831743,-341.48088377,0.00013472,2]
[331159644,1720111831755,-1104.46932817,0.00013472,2]
[331159645,1720111831770,-2253.76645182,0.00013472,2]
[331159646,1720111831782,-1865.69249295,0.00013472,2]
[331159647,1720111831794,-16490.56447328,0.00013472,2]
[331159648,1720111831805,-663.3699,0.00013899,2]
[331159649,1720111831814,-50739.06080568,0.00014,2]
[331159650,1720111831830,-2455.35564776,0.00014,2]
[331159651,1720111831844,-6778.84753364,0.00014,2]
[331159652,1720111831856,-360.67999992,0.00014,2]
[331159653,1720111831867,-561.51132701,0.00014,2]
[331159654,1720111831878,-453.4294482,0.00014,2]
[331159655,1720111831890,-1275.73562343,0.00014,2]
[331159656,1720111831902,-430693.89740512,0.00014,2]
[331159657,1720111831914,-592.94462,0.00014,2]
[331159658,1720111831925,-1286.32241983,0.00014,2]
[331159660,1720111831940,-1349.47797968,0.00014,2]
[331159662,1720111831952,-485.79396426,0.00014,2]
[331159663,1720111831964,-5660.36809885,0.00014,2]
[331159664,1720111831977,-11477.61914341,0.00014,2]
[331159669,1720111837631,-39039.03607382,0.00014,2]
[331159670,1720111837642,-6274.0,0.00014,2]
[331159671,1720111837652,-733.1684493,0.00014,2]
[331159675,1720111837741,-614.60712979,0.00014,2]
[331159676,1720111837753,-820.5999,0.00014,2]
[331159677,1720111837768,-6547.49288137,0.00014,2]
[331159678,1720111837862,-5455.43200001,0.00014,2]
[331159679,1720111837874,-30740.5,0.00014,2]
[331159680,1720111837885,-1546.71911174,0.00014,2]
[331159681,1720111837998,-10761.4620145,0.00014,2]
[331159684,1720111838010,-57967.81323513,0.00014,2]
[331159686,1720111838022,-2820.32,0.00014,2]
[331159878,1720111840036,-29167.71899999,0.00014,2]
[331160059,1720111841909,-876.31129986,0.00014,2]
[331160060,1720111841921,-289.675,0.00014,2]
[331160382,1720111844862,-94057.32086157,0.00014,2]
[331160384,1720111844870,-13258.76287456,0.00014517,2]
[331160386,1720111844879,-321.75094634,0.00014517,2]
[331160388,1720111844888,-150.0,0.00014657,2]
[331160390,1720111844897,-250.0,0.00014676,2]
[331160392,1720111844906,-9999.99,0.00014731,2]
[331160394,1720111844916,-759.54,0.00014913,2]
[331160395,1720111844925,-205.31,0.00014959,2]
[331160397,1720111844935,-4019.7,0.00014959,2]
[331160399,1720111844944,-150.0,0.00014959,2]
[331160401,1720111844955,-182.89561435,0.00014997,2]
[331160403,1720111844965,-1042.84299656,0.00014998,2]
[331160405,1720111844976,-492.6885797,0.00014999,2]
[331160407,1720111844986,-500.0,0.00014999,2]
[331160409,1720111844996,-500.0,0.00014999,2]
[331160411,1720111845006,-500.0,0.00014999,2]
[331160413,1720111845015,-386.18041963,0.00014999,2]
[331160415,1720111845024,-157.28134079,0.00014999,2]
[331160417,1720111845033,-499.99,0.00014999,2]
[331160419,1720111845042,-1925.74471375,0.00015,2]
[331160421,1720111845051,-498651.25812946,0.00015,2]
[331160512,1720111845760,-1549.225,0.00015,2]
[331160516,1720111845776,-854.15,0.00015,2]
[331160520,1720111845787,-1741.6135,0.00015,2]
[331160524,1720111845799,-11651.21138074,0.00015,2]
[331160551,1720111845890,-2547.92756546,0.00015,2]
[331160597,1720111846181,-863.175,0.00015,2]
[331162901,1720112211090,22629.09717146,0.00011198,2]
[331162902,1720112211116,3640.0,0.00011198,2]
[331162903,1720112211141,10000.0,0.00011198,2]
[331162904,1720112211166,10000.0,0.00011198,2]
[331162905,1720112211190,10000.0,0.00011198,2]
[331162906,1720112211212,10000.0,0.00011198,2]
[331162907,1720112211239,175527.01883119,0.00011198,2]
[331162908,1720112211264,21531.96608679,0.00011198,2]
[331162912,1720112271566,1367.01150639,0.00011198,2]
[331162913,1720112277899,200.78983795,0.00011198,2]
[331162914,1720112280029,348.63446344,0.00011198,2]
[331162915,1720112280806,3510.48662769,0.00011198,2]
[331162916,1720112286898,7549.40604158,0.00011198,2]
[331162917,1720112291680,155.19002135,0.00011198,2]
[331162918,1720112292559,411.72766835,0.00011198,2]
[331162919,1720112317331,553.02142247,0.00011198,2]
[331162920,1720112325305,20324.99291597,0.00011198,2]
[331162921,1720112343137,181.19391818,0.00011198,2]
[331162922,1720112355309,20324.99291597,0.00011198,2]
[331162924,1720112380042,348.56690392,0.00011198,2]
[331162926,1720112389564,470.41652112,0.00011198,2]
[331162928,1720112426327,553.52456096,0.00011198,2]
[331162929,1720112436150,294.73982895,0.00011198,2]
[331162930,1720112472326,1800.47859652,0.00011198,2]
[331162932,1720112502557,500.0,0.00010112,2]
[331162933,1720112504797,500.0,0.00010934,2]
[331162935,1720112583618,800.0,0.00010112,2]
[331162936,1720112585248,800.0,0.00010934,2]
[331162939,1720112658755,1055.23788443,0.00011199,2]
[331162941,1720112707977,788.74652378,0.00011199,2]
[331162942,1720112738169,165.4084403,0.00011199,2]
[331162943,1720112745555,989.61053108,0.00011199,2]
[331162944,1720112746681,155.16497867,0.00011199,2]
[331162945,1720112757106,888.65243698,0.00011199,2]
[331162946,1720112764128,3000.0,0.00011199,2]
[331162948,1720112803201,518.04242089,0.00011199,2]
[331162949,1720112808715,265.41435654,0.00011199,2]
[331162950,1720112823294,14457.9773643,0.00011199,2]
[331162951,1720112829261,-254.45000316,0.00011756,2]
[331162952,1720112842120,-202.66798847,0.00011656,2]
[331162953,1720112851779,155.0,0.00011199,2]
[331162954,1720112885214,10557.12229191,0.00011199,2]
[331162956,1720112916195,-300.0,0.00011755,2]
[331162957,1720112916226,-5440.51124685,0.00011756,2]
[331162958,1720112916269,-5740.51124685,0.00011756,2]
[331162959,1720112916303,-288.3840673,0.00011756,2]
[331162960,1720112916338,-5740.51124685,0.00011756,2]
[331162961,1720112916384,-5740.51124685,0.00011756,2]
[331162962,1720112916425,-5740.51124685,0.00011756,2]
[331162963,1720112916460,-5740.51124685,0.00011756,2]
[331162964,1720112916504,-5740.51124685,0.00011756,2]
[331162965,1720112916565,-5740.51124685,0.00011756,2]
[331162966,1720112916632,-1167.08686589,0.00011756,2]
[331162967,1720112916662,-2145.54999684,0.00011756,2]
[331162968,1720112916692,-2427.87438412,0.00011756,2]
[331162969,1720112923417,366.99921746,0.00011199,2]
[331162971,1720112946107,-428.26135153,0.00011656,2]
[331162972,1720112946129,-72.12561588,0.00011756,2]
[331162973,1720112946152,-800.0,0.00011756,2]
[331162974,1720112946173,-893.44743259,0.00011756,2]
[331162975,1720112960146,-18.33754741,0.00011756,2]
[331162976,1720112960170,-2200.0,0.00011756,2]
[331162977,1720112960193,-1055.23788443,0.00012302,2]
[331162978,1720112960215,-300.0,0.00012577,2]
[331162979,1720112960236,-312.65936816,0.00012578,2]
[331162980,1720112960265,-187.34063184,0.00012578,2]
[331162981,1720112960287,-2014.73592031,0.00012578,2]
[331162982,1720112961090,-485.26407969,0.00012578,2]
[331162983,1720112961114,-800.0,0.00012578,2]
[331162984,1720112961134,-2200.0,0.00012578,2]
[331162985,1720112961155,-8537.91,0.00012763,2]
[331162986,1720112961176,-286.59,0.00012794,2]
[331162987,1720112961198,-500.0,0.00012804,2]
[331162988,1720112961220,-738.09,0.00012949,2]
[331162989,1720112961242,-210.53,0.00013111,2]
[331162990,1720112961262,-369.21,0.00013128,2]
[331162991,1720112961283,-199.37,0.00013128,2]
[331162992,1720112961304,-182.1172596,0.00013128,2]
[331162993,1720112961324,-7096.36275677,0.00013128,2]
[331162994,1720112961343,-791.23894816,0.00013128,2]
[331162995,1720112961364,-8830.617432,0.00013128,2]
[331162996,1720112961385,-210.53,0.00013147,2]
[331162997,1720112961406,-499.99,0.00013147,2]
[331162998,1720112961426,-9999.99,0.00013147,2]
[331162999,1720112961448,-585.63,0.00013147,2]
[331163000,1720112961469,-3127.38494455,0.00013165,2]
[331163001,1720112976297,411.54108137,0.00011756,2]
[331163002,1720112976319,188.45891863,0.00011756,2]
[331163003,1720113023007,500.0,0.00010112,2]
[331163004,1720113024597,500.0,0.00011756,2]
[331163014,1720113031955,-600.0,0.00012578,2]
[331163015,1720113031965,-150.0,0.00012973,2]
[331163016,1720113031974,-250.0,0.00012974,2]
[331163017,1720113031984,-155.0,0.00013128,2]
[331163018,1720113031993,-1729.024,0.00013165,2]
[331163019,1720113032007,-297.04785907,0.00013165,2]
[331163020,1720113032019,-473.92814093,0.00013165,2]
[331163021,1720113032029,-17062.13985781,0.00013165,2]
[331163022,1720113032040,-1913.12,0.00013165,2]
[331163023,1720113032051,-800.07111468,0.00013165,2]
[331163024,1720113032062,-997.28408296,0.00013165,2]
[331163025,1720113032072,-210.53,0.00013183,2]
[331163026,1720113032081,-210.53,0.00013219,2]
[331163027,1720113032090,-210.53,0.00013255,2]
[331163028,1720113032100,-167.3,0.00013261,2]
[331163029,1720113032109,-210.53,0.00013291,2]
[331163030,1720113032119,-1757.45,0.00013295,2]
[331163031,1720113032129,-210.53,0.00013327,2]
[331163032,1720113032143,-210.53,0.00013363,2]
[331163033,1720113032151,-500.0,0.00013379,2]
[331163034,1720113032161,-210.53,0.00013399,2]
[331163035,1720113032170,-2200.0,0.000134,2]
[331163036,1720113032180,-600.0,0.000134,2]
[331163037,1720113032189,-500.0,0.000134,2]
[331163038,1720113032198,-1000.0,0.00013427,2]
[331163039,1720113032210,-210.53,0.00013435,2]
[331163040,1720113032220,-210.53,0.0001347,2]
[331163041,1720113032230,-205.31,0.00013472,2]
[331163042,1720113032239,-155.0,0.00013472,2]
[331163043,1720113032248,-210.53,0.00013506,2]
[331163044,1720113032257,-264.43,0.00013523,2]
[331163045,1720113032266,-210.53,0.00013542,2]
[331163046,1720113032275,-210.53,0.00013578,2]
[331163048,1720113032284,-210.53,0.00013614,2]
[331163050,1720113032294,-210.53,0.0001365,2]
[331163052,1720113032303,-210.53,0.00013686,2]
[331163054,1720113032312,-66.41734704,0.00013699,2]
[331163056,1720113032324,-835.69265296,0.00013699,2]
[331163057,1720113032333,-302.56,0.00013699,2]
[331163058,1720113032342,-210.53,0.00013722,2]
[331163059,1720113032351,-200.0,0.00013743,2]
[331163060,1720113032360,-210.53,0.00013758,2]
[331163061,1720113032369,-155.0,0.00013759,2]
[331163062,1720113032379,-210.53,0.00013794,2]
[331163063,1720113032388,-64.58854512,0.00013824,2]
[331163064,1720113032399,-140.09145488,0.00013824,2]
[331163065,1720113032408,-250.0,0.0001385,2]
[331163066,1720113032418,-173.3514,0.00013899,2]
[331163067,1720113032427,-2857.98675879,0.00013999,2]
[331163068,1720113032436,-5062.75451632,0.00013999,2]
[331163069,1720113032448,-882.40264769,0.00013999,2]
[331163070,1720113032602,-13673.03196027,0.00013999,2]
[331163071,1720113032611,-461.90376345,0.00014,2]
[331163072,1720113032620,-2358.88,0.00014072,2]
[331163073,1720113032630,-150.99,0.00014072,2]
[331163074,1720113032639,-172.91,0.00014092,2]
[331163075,1720113032648,-2200.0,0.00014222,2]
[331163076,1720113032657,-600.0,0.00014222,2]
[331163077,1720113032667,-344.51,0.00014283,2]
[331163078,1720113032676,-302.56,0.00014384,2]
[331163079,1720113032685,-29251.24092824,0.0001485,2]
[331163080,1720113032694,-2212.15099067,0.00014899,2]
[331163081,1720113032703,-1142.86544401,0.000149,2]
[331163082,1720113032713,-210.98266915,0.000149,2]
[331163083,1720113032723,-182.32785995,0.000149,2]
[331163084,1720113032732,-179.28516623,0.000149,2]
[331163085,1720113032741,-341.53451897,0.000149,2]
[331163086,1720113032751,-233.85367932,0.000149,2]
[331163087,1720113032760,-17633.8297607,0.00014989,2]
[331163088,1720113032770,-179.6168885,0.0001499,2]
[331163089,1720113032779,-858.8,0.0001499,2]
[331163090,1720113032792,-858.8,0.0001499,2]
[331163091,1720113033042,-858.8,0.0001499,2]
[331163092,1720113033051,-858.8,0.0001499,2]
[331163093,1720113033061,-858.8,0.0001499,2]
[331163094,1720113033070,-157.28134079,0.00014999,2]
[331163095,1720113033080,-411318.84478289,0.00015,2]
[331163096,1720113033092,-12191.51498028,0.00015,2]
[331163097,1720113033103,-2099.46162916,0.00015,2]
[331163098,1720113033114,-12995.0,0.00015,2]
[331163106,1720113037973,-734.70866164,0.00013126,2]
[331163107,1720113037984,-1365.29133836,0.00013126,2]
[331163108,1720113037994,-2100.0,0.00013948,2]
[331163109,1720113038003,-2100.0,0.0001477,2]
[331163110,1720113038011,-8645.12237579,0.00015,2]
[331163111,1720113038022,-347.93,0.00015,2]
[331163112,1720113038033,-3804.36369245,0.00015,2]
[331163113,1720113038044,-384.59479513,0.00015,2]
[331163114,1720113038055,-28337.86218482,0.00015,2]
[331163115,1720113038065,-298.0119726,0.00015,2]
[331163116,1720113038076,-28355.42344949,0.00015,2]
[331163117,1720113038086,-570.18901416,0.00015,2]
[331163118,1720113038127,-267.4029094,0.00015,2]
[331163119,1720113038143,-31379.86762403,0.00015,2]
[331163120,1720113038156,-781.88578096,0.00015,2]
[331163121,1720113038167,-769.22313,0.00015,2]
[331163122,1720113038298,-368.4034386,0.00015,2]
[331163123,1720113038310,-780.33589964,0.00015,2]
[331163124,1720113038321,-1014.28138797,0.00015,2]
[331163322,1720113040371,-82757.37687966,0.00015,2]
[331163324,1720113040383,-411.10322206,0.00015,2]
[331163326,1720113040395,-3532.00000001,0.00015,2]
[331163342,1720113040537,-251098.07818784,0.00015,2]
[331163344,1720113040547,-4507.59022731,0.00015,2]
[331163346,1720113040556,-623.10727104,0.00015,2]
[331163348,1720113040566,-3969.81959498,0.00015,2]
[331163350,1720113040576,-159.65843693,0.00015007,2]
[331163352,1720113040585,-500.0,0.00015044,2]
[331163354,1720113040594,-302.56,0.00015068,2]
[331163356,1720113040604,-3519.0,0.00015097,2]
[331163358,1720113040613,-1000.0,0.00015105,2]
[331163360,1720113040623,-738.09,0.00015212,2]
[331163362,1720113040632,-1881.3049435,0.00015287,2]
[331163364,1720113040641,-24030.70033026,0.00015315,2]
[331163366,1720113040651,-1392.67864661,0.00015335,2]
[331163368,1720113040661,-341.53451886,0.00015471,2]
[331163370,1720113040670,-1287.33023709,0.00015479,2]
[331163372,1720113040680,-698.91607848,0.00015479,2]
[331163374,1720113040689,-378.07593941,0.00015535,2]
[331163376,1720113040701,-635.08920842,0.00015535,2]
[331163378,1720113040711,-345.97900744,0.00015535,2]
[331163380,1720113040720,-753.70840975,0.00015535,2]
[331163382,1720113040730,-155.11752657,0.00015535,2]
[331163384,1720113040739,-766.78864822,0.00015579,2]
[331163386,1720113040749,-155.0,0.00015579,2]
[331163388,1720113040758,-109.90959371,0.00015579,2]
[331163392,1720113040778,-96.16208646,0.00015579,2]
[331163394,1720113040787,-255.9180757,0.00015579,2]
[331163396,1720113040797,-258.88603077,0.00015579,2]
[331163398,1720113040806,-36.38276728,0.00015592,2]
[331163400,1720113040818,-1413.30200003,0.00015592,2]
[331163402,1720113040829,-650.31523269,0.00015592,2]
[331163404,1720113040838,-294.06376731,0.00015753,2]
[331163406,1720113040849,-8.49623269,0.00015753,2]
[331163408,1720113040859,-296.19802604,0.00015832,2]
[331163410,1720113040870,-141.80295594,0.00015832,2]
[331163413,1720113040880,-196.20443442,0.00015832,2]
[331163415,1720113040889,-254.17046342,0.00015832,2]
[331163417,1720113040899,-124.63160742,0.00015832,2]
[331163421,1720113040934,-350.60001938,0.00015832,2]
[331163424,1720113040945,-166.70918062,0.00015832,2]
[331163620,1720113043030,-382.12258582,0.00015579,2]
[331163623,1720113043042,-307.88069932,0.00015579,2]
[331163625,1720113043051,-297.60689096,0.00015579,2]
[331163627,1720113043061,-250.47708247,0.00015832,2]
[331163629,1720113043071,-155.0,0.00015832,2]
[331163631,1720113043081,-209.14528895,0.00015832,2]
[331163633,1720113043090,-158.86009896,0.00015832,2]
[331163635,1720113043100,-155.0,0.00015832,2]
[331163637,1720113043110,-723.49825474,0.00015832,2]
[331163639,1720113043118,-437.69795218,0.00015832,2]
[331163641,1720113043128,-155.0,0.00015832,2]
[331163643,1720113043142,-211.2233086,0.00015832,2]
[331163645,1720113043151,-2200.0,0.00015866,2]
[331163647,1720113043160,-543.38960117,0.00015866,2]
[331163712,1720113044161,-56.61039883,0.00015866,2]
[331163714,1720113044170,-692.65364848,0.000159,5]
[331163716,1720113044183,-1243.9391314,0.000159,5]
[331163718,1720113044194,-8450.7127794,0.000159,5]
[331163724,1720113044248,-384.34999965,0.000159,5]
[331163727,1720113044259,-453.8567141,0.000159,5]
[331163729,1720113044270,-256.48772697,0.000159,5]
[331163731,1720113044279,-1053.37126772,0.00015957,2]
[331163733,1720113044287,-24030.70033022,0.00016004,2]
[331163735,1720113044296,-1142.86544397,0.00016039,2]
[331163737,1720113044306,-341.53451886,0.00016041,2]
[331163739,1720113044315,-344.51,0.00016069,2]
[331163741,1720113044324,-431.06738212,0.00016172,2]
[331163743,1720113044333,-647.42838071,0.00016172,2]
[331163745,1720113044341,-190.85340652,0.00016172,2]
[331163747,1720113044350,-173.80868065,0.00016172,2]
[331163749,1720113044360,-491.51691083,0.00016172,2]
[331163751,1720113044368,-308.2,0.00016172,2]
[331163753,1720113044377,-155.30809149,0.00016172,2]
[331163755,1720113044386,-288.53700053,0.00016172,2]
[331163757,1720113044395,-155.0,0.00016172,2]
[331163759,1720113044404,-368.31,0.00016291,2]
[331163761,1720113044413,-1287.66973724,0.00016315,2]
[331163763,1720113044421,-328.82033738,0.00016315,2]
[331163765,1720113044431,-412.23419476,0.00016315,2]
[331163767,1720113044440,-200.0,0.0001634,2]
[331163768,1720113044449,-302.56,0.00016438,2]
[331163771,1720113044459,-166.67,0.00016462,2]
[331163772,1720113044469,-150.0,0.00016475,2]
[331163775,1720113044480,-1759.05412823,0.00016566,2]
[331163776,1720113044489,-341.53451886,0.00016612,2]
[331163778,1720113044498,-500.0,0.00016688,2]
[331163780,1720113044507,-24030.70033022,0.00016692,2]
[331163782,1720113044516,-155.0,0.00016699,2]
[331163784,1720113044525,-274.1161028,0.00016699,2]
[331163786,1720113044534,-309.92840343,0.00016699,2]
[331163788,1720113044543,-405.87217639,0.00016699,2]
[331163790,1720113044552,-169.7347945,0.00016764,2]
[331163792,1720113044561,-1000.0,0.00016784,2]
[331163794,1720113044570,-155.0,0.00016808,2]
[331163796,1720113044579,-301.0638839,0.00017023,2]
[331163798,1720113044588,-527.17227954,0.00017159,2]
[331163800,1720113044597,-1142.86544397,0.00017178,2]
[331163802,1720113044606,-341.53451886,0.00017183,2]
[331163804,1720113044615,-2494.54308741,0.00017199,2]
[331163806,1720113044624,-2100.0,0.00017236,2]
[331163808,1720113044632,-6385.20519024,0.0001726,2]
[331163810,1720113044642,-24030.70033022,0.00017381,2]
[331163812,1720113044652,-179.28516623,0.000174,2]
[331163814,1720113044661,-738.09,0.00017476,2]
[331163816,1720113044670,-2200.0,0.0001751,2]
[331163818,1720113044679,-600.0,0.0001751,2]
[331163820,1720113044688,-341.53451886,0.00017754,2]
[331163822,1720113044697,-500.0,0.00017784,2]
[331163824,1720113044707,-344.51,0.00017854,2]
[331163826,1720113044716,-2202.0,0.000179,3]
[331163828,1720113044726,-370.5829158,0.00018,2]
[331163830,1720113044737,-637.0,0.00018,3]